[Event "Croatian 1B League 2022"]
[Site "Porec"]
[Date "2022.09.27"]
[Round "4.7"]
[White "Doric, Darko"]
[Black "Aczel, Gergely"]
[Result "0-1"]
[ECO "A46"]
[WhiteElo "2457"]
[BlackElo "2474"]
[Annotator "TA"]
[PlyCount "190"]
[EventDate "2022.09.24"]
[EventType "team-tourn"]
[EventCountry "CRO"]
[SourceTitle "playchess.com"]
[Source "ChessBase"]
[SourceQuality "1"]
[TimeControl "40/5400+30:1800+30"]

{[%evp 9,190,11,13,0,13,11,11,16,14,0,6,11,29,29,27,17,28,20,22,29,23,16,28,20,31,19,19,18,17,29,35,0,0,0,14,0,0,0,0,-22,-14,-8,-5,-6,0,0,0,-40,-36,-25,0,0,0,0,0,0,0,0,0,0,0,0,0,0,0,0,0,0,0,0,0,0,0,0,0,0,0,0,0,0,0,0,0,0,0,0,0,0,0,0,0,-2,0,0,0,0,0,0,0,0,0,0,0,0,0,-18,0,0,0,0,0,0,0,-20,0,-22,0,-271,0,0,0,0,0,-253,-253,-12832,-12832,-12833,-12832,-12835,-12835,-12836,0,-12834,-12834,-12834,-12835,-12835,-12835,-12836,0,-12834,-12835,-12835,-12835,-12836,-12835,-12835,0,-12836,-12835,-12835,-12835,-12836,-302,-12837,-12837,-12837,-12836,-12837,-12837,-12837,-12832,-12839,-12839,-12843,-12843,-12842,-12841,-12847,-12848,-12849,-12849,-27999,-27997,-27998,-27997,-27998,-27997,-27999,-27996,-27997,-27997]} 1. d4 {[%emt 0:00:07]} Nf6 {[%emt 0:00:33]} 2. Nf3 {[%emt 0:00:07]} e6 {[%emt 0:00:11]} 3. Bf4 {[%emt 0:00:09]} h6 {[%emt 0:02:30]} 4. c4 {[%emt 0:03:36]} b6 {[%emt 0:00:12]} 5. h3 {[%emt 0:00:39]} Bb7 {[%emt 0:00:36]} 6. e3 {[%emt 0:00:25] A46: 1 d4 Nf6 2 Nf3 e6: Torre, London and Colle Systems.} d5 {[%emt 0:29:19]} 7. Nc3 {[%emt 0:01:41] [#]} Bd6 $146 {[%emt 0:02:04]} ({Predecessor:} 7... Bb4 8. Qa4+ Nbd7 9. Qxb4 {1-0 (9) Geshelin,Y (2160)-Vekshin,V Satka 2004}) 8. Bxd6 {[%emt 0:00:56] The position is equal.} Qxd6 {[%emt 0:11:31]} 9. cxd5 {[%emt 0:10:26]} Nxd5 {[%emt 0:00:28]} 10. Qa4+ {[%emt 0:02:10]} c6 {[%emt 0:07:02]} (10... Nd7 {is interesting.} 11. Ne5 Nxc3 12. bxc3 c6) 11. Nxd5 {[%emt 0:01:10]} exd5 {[%emt 0:00:11]} 12. Be2 {[%emt 0:01:18]} O-O {[%emt 0:00:25]} 13. Rc1 {[%emt 0:00:17]} Nd7 {[%emt 0:02:26]} 14. O-O {[%emt 0:03:07]} a5 {[%emt 0:00:23]} 15. Rfd1 {[%emt 0:05:17][%cal Bf1d1,Bd1d2,Bd2c2][%mdl 32]} Rfc8 {[%emt 0:02:04]} 16. Rd2 {[%emt 0:04:39]} Rc7 {[%emt 0:05:03]} 17. Bd3 {[%emt 0:02:22]} g6 {[%emt 0:01:35]} 18. h4 {[%emt 0:00:47]} h5 {[%emt 0:01:04]} 19. g3 {[%emt 0:00:14]} Re8 {[%emt 0:02:54][%cal Oe8e3]} 20. Qd1 {[%emt 0:02:48]} Nf6 {[%emt 0:04:07]} 21. Rdc2 {[%emt 0:18:51]} Ng4 {[%emt 0:01:42]} 22. Qe1 {[%emt 0:02:58]} c5 {[%emt 0:10:54]} 23. Bb5 {[%emt 0:03:02]} Rec8 {[%emt 0:02:16]} 24. Nh2 {[%emt 0:10:52]} Nxh2 {[%emt 0:03:19]} 25. Kxh2 {[%emt 0:00:59]} c4 {[%emt 0:00:05]} 26. a4 {[%emt 0:00:48]} Bc6 {[%emt 0:00:40]} 27. Bxc6 {[%emt 0:00:53]} Rxc6 {[%emt 0:00:02]} 28. Kg2 {[%emt 0:02:19]} Qb4 {[%emt 0:02:39]} 29. Ra1 {[%emt 0:00:19]} Rb8 {[%emt 0:04:10]} 30. e4 {[%emt 0:05:22]} dxe4 {[%emt 0:00:12]} 31. Qxe4 {[%emt 0:00:33]} Re6 {[%emt 0:00:02]} 32. Qf3 {[%emt 0:01:08]} Rd8 {[%emt 0:00:50]} 33. Qc3 {[%emt 0:01:05] aiming for Qxb4.} Qd6 {[%emt 0:00:37]} 34. Qxc4 {[%emt 0:02:41]} Qxd4 {[%emt 0:00:01]} 35. Qxd4 {[%emt 0:01:28]} Rxd4 $11 {[%emt 0:00:02][%mdl 4096] Endgame KRR-KRR} 36. b3 {[%emt 0:00:11]} Rd3 {[%emt 0:03:03][%cal Bd4d3,Bd3c3,Bc3c4][%mdl 32]} 37. Rb1 {[%emt 0:00:20]} Re4 {[%emt 0:00:16]} 38. Rc4 {[%emt 0:02:58]} Rxc4 {[%emt 0:00:47]} 39. bxc4 {[%emt 0:00:03] KR-KR} Rc3 {[%emt 0:00:07]} 40. Rxb6 {[%emt 0:00:00] [#] Black must now prevent Rb5.} Rxc4 {[%emt 0:00:00]} 41. Ra6 {[%emt 0:00:13]} Rxa4 {[%emt 0:00:09]} 42. Kf3 {[%emt 0:00:14]} Ra2 {[%emt 0:00:52]} 43. Ra8+ {[%emt 0:03:28]} Kg7 {[%emt 0:01:11]} 44. Ra6 $1 {[%emt 0:00:22]} Ra3+ {[%emt 0:00:25]} 45. Kf4 {[%emt 0:00:13]} Kf8 {[%emt 0:00:15]} 46. Ra7 {[%emt 0:00:05]} Ra2 {[%emt 0:00:15]} 47. Kf3 {[%emt 0:00:07]} Ra3+ {[%emt 0:01:08]} 48. Kf4 {[%emt 0:00:07]} Ke8 {[%emt 0:00:12]} 49. Ke4 {[%emt 0:00:08]} Ra2 {[%emt 0:00:18]} 50. Kf3 {[%emt 0:00:07]} a4 {[%emt 0:00:15]} 51. Ke3 {[%emt 0:00:05]} a3 {[%emt 0:00:06]} 52. Kf3 $1 {[%emt 0:00:04]} Kf8 {[%emt 0:06:09]} 53. Ke3 {[%emt 0:00:22]} Kg7 {[%emt 0:00:07]} 54. Ra6 {[%emt 0:00:06]} f6 {[%emt 0:00:10]} 55. Ra7+ {[%emt 0:02:26]} Kf8 {[%emt 0:00:11]} 56. Kf3 {[%emt 0:02:00]} Ke8 {[%emt 0:00:06]} 57. Ra6 {[%emt 0:03:54]} Ke7 {[%emt 0:00:06]} 58. Ke3 {[%emt 0:01:14]} Kf7 {[%emt 0:15:05]} 59. Kf3 $1 {[%emt 0:00:07]} Ra1 {[%emt 0:00:08]} 60. Kf4 {[%emt 0:00:39]} Ke7 {[%emt 0:00:23]} ({But not} 60... a2 $2 61. Kf3 $19) 61. Kf3 {[%emt 0:00:13]} Kf7 {[%emt 0:00:17]} (61... a2 {with more complications.} 62. Ke2 Kd8 63. Ra7 Kc8) 62. Kf4 {[%emt 0:00:07]} Ke7 $2 {[%emt 0:01:41]} (62... a2 $11 63. Kf3 g5) 63. Kf3 $19 {[%emt 0:00:12]} Ra2 $2 {[%emt 0:02:19]} (63... a2 $19 64. Ke2 Kd7) 64. Kg2 {[%emt 0:01:05]} g5 {[%emt 0:05:55]} 65. hxg5 {[%emt 0:00:29]} fxg5 {[%emt 0:00:12] [#] ...g4 is the strong threat.} 66. Ra5 $2 {[%emt 0:00:17][%mdl 8192] Black converts the advantage convincingly.} (66. Kh3 $11) 66... g4 {[%emt 0:00:55]} 67. Ra6 $2 {[%emt 0:13:17]} (67. Re5+ Kd7 68. Ra5) 67... Kd7 {[%emt 0:00:15]} 68. Ra8 {[%emt 0:04:49]} Kc6 {[%emt 0:01:15]} 69. Kf1 {[%emt 0:01:20]} Ra1+ {[%emt 0:00:35]} 70. Kg2 {[%emt 0:01:48]} Ra2 {[%emt 0:04:11]} 71. Kf1 $1 {[%emt 0:00:11]} Kb7 {[%emt 0:00:49] Against Rc8} 72. Ra5 {[%emt 0:00:06]} Kb6 {[%emt 0:00:04]} 73. Ra8 {[%emt 0:00:04]} Ra1+ {[%emt 0:00:52]} 74. Kg2 {[%emt 0:00:07]} Ra2 {[%emt 0:00:58]} 75. Kf1 {[%emt 0:00:02]} Kb5 {[%emt 0:00:56]} 76. Rb8+ {[%emt 0:00:53]} Kc4 {[%emt 0:00:04]} 77. Rc8+ {[%emt 0:00:07]} Kd4 {[%emt 0:00:08]} 78. Rd8+ {[%emt 0:00:19]} Kc4 {[%emt 0:00:05]} 79. Rc8+ $1 {[%emt 0:00:05]} Kb4 {[%emt 0:00:12]} 80. Rb8+ {[%emt 0:00:05]} Kc3 {[%emt 0:00:04]} 81. Rc8+ {[%emt 0:00:08]} Kd3 $2 {[%emt 0:00:23]} (81... Kb2 82. Rb8+ Kc3 83. Rc8+ Kb4 84. Rb8+ Kc4 85. Rc8+) 82. Rd8+ $2 {[%emt 0:00:39]} (82. Re8) 82... Kc2 {[%emt 0:00:16]} 83. Rc8+ {[%emt 0:01:15]} Kb1 {[%emt 0:00:38]} 84. Ra8 {[%emt 0:00:06]} Ra1 {[%emt 0:00:43]} 85. Ke2 {[%emt 0:10:46]} Kc2 {[%emt 0:00:09]} 86. Ke3 {[%emt 0:01:28]} a2 {[%emt 0:01:53]} 87. Kf4 {[%emt 0:06:37]} Kd2 {[%emt 0:00:09]} 88. Kg5 {[%emt 0:00:32]} Ke2 {[%emt 0:00:06]} 89. Kxh5 {[%emt 0:02:15]} Rh1+ {[%emt 0:00:06]} 90. Kxg4 {[%emt 0:00:02]} a1=Q {[%emt 0:00:04] ( -> ...Qg7+)} 91. Rxa1 {[%emt 0:00:04]} Rxa1 {[%emt 0:00:05] Black mates.} 92. f4 {[%emt 0:00:22]} Ke3 {[%emt 0:01:41]} 93. Kg5 {[%emt 0:01:32]} Ke4 {[%emt 0:00:00]} 94. f5 {[%emt 0:00:27]} Ke5 {[%emt 0:00:10]} 95. g4 {[%emt 0:00:14]} Ra6 {[%emt 0:00:43] Weighted Error Value: White=0.03 (flawless) /Black=0.03 (flawless)} 0-1

[Event "Croatian 1B League 2022"]
[Site "Porec"]
[Date "2022.09.27"]
[Round "4.8"]
[White "Medvegy, Zoltan"]
[Black "Maksimovic, Bojan"]
[Result "0-1"]
[ECO "A49"]
[WhiteElo "2526"]
[BlackElo "2468"]
[Annotator "TA"]
[PlyCount "76"]
[EventDate "2022.09.24"]
[EventType "team-tourn"]
[EventCountry "CRO"]
[SourceTitle "playchess.com"]
[Source "ChessBase"]
[SourceQuality "1"]
[TimeControl "40/5400+30:1800+30"]

{[%evp 11,76,29,33,18,14,21,15,10,4,4,9,13,14,13,20,21,29,46,20,-8,-27,-17,-20,-24,-19,-21,-20,-28,-15,-54,-54,-53,-48,-100,-88,-88,-93,-98,-86,-101,-89,-89,-68,-162,-164,-185,-183,-279,-244,-241,-150,-460,-451,-527,-506,-551,-547,-714,-688,-29968,-29969,-29969,-29969,-29993,-29994,-29994,-29995]} 1. Nf3 {[%emt 0:00:03]} Nf6 {[%emt 0:00:11]} 2. g3 {[%emt 0:00:09]} g6 {[%emt 0:00:07]} 3. b3 {[%emt 0:00:10]} Bg7 {[%emt 0:00:09]} 4. Bb2 {[%emt 0:00:06]} d6 {[%emt 0:00:06]} 5. d4 {[%emt 0:00:26]} c5 {[%emt 0:00:18]} 6. Bg2 {[%emt 0:00:34]} Qa5+ {[%emt 0:01:01]} 7. Qd2 {[%emt 0:00:14] A49: 1 d4 Nf6 2 Nf3 g6 3 g3: Anti-King's Indian systems.} Qxd2+ {[%emt 0:00:26]} 8. Nbxd2 {[%emt 0:00:05]} Na6 {[%emt 0:00:36]} 9. c4 {[%emt 0:03:46] The position is equal.} O-O {[%emt 0:02:41]} 10. O-O {[%emt 0:00:20]} Bd7 {[%emt 0:02:40] [#]} 11. e4 $146 {[%emt 0:24:31][%cal Be2e4,Be4e5][%mdl 32]} ({Predecessor:} 11. a3 Rab8 12. e4 cxd4 13. Nxd4 Nc5 14. Rad1 Rfc8 15. h3 a6 16. b4 Nd3 17. Ba1 {1-0 (43) Efimenko,Z (2597)-Blohberger,F (2503) Warsaw 2021}) 11... cxd4 {[%emt 0:06:45]} 12. e5 {[%emt 0:14:58]} Ng4 {[%emt 0:05:57]} 13. exd6 {[%emt 0:02:19]} e5 {[%emt 0:00:40]} 14. h3 {[%emt 0:00:21]} Nh6 {[%emt 0:00:15]} 15. Nxe5 {[%emt 0:29:58]} Bxe5 {[%emt 0:04:23]} 16. Bxb7 {[%emt 0:00:06]} Nc5 {[%emt 0:04:55]} 17. Bxa8 {[%emt 0:00:05]} Rxa8 {[%emt 0:01:48]} 18. Rfe1 {[%emt 0:16:42]} Bxd6 {[%emt 0:01:46] ...Nf5 is the strong threat.} 19. Bxd4 {[%emt 0:00:15]} Bxh3 {[%emt 0:01:22]} 20. Ne4 {[%emt 0:02:24]} Nxe4 {[%emt 0:01:27]} 21. Rxe4 {[%emt 0:00:01]} Bf5 {[%emt 0:08:06] This bishop pair is nice.} 22. Rh4 {[%emt 0:02:07]} ({Better is} 22. Ree1 $15) 22... Ng4 $17 {[%emt 0:00:06]} 23. f3 {[%emt 0:01:25]} Ne5 $36 {[%emt 0:01:02][%mdl 2048] Black is really pushing.} 24. Kg2 {[%emt 0:00:02]} g5 {[%emt 0:02:56][%cal Bg6g5,Bg5g4,Bg4f3][%mdl 32]} 25. Rh6 {[%emt 0:00:15]} Bg6 {[%emt 0:00:29]} 26. Rd1 {[%emt 0:00:31]} a5 {[%emt 0:03:52]} 27. Bb6 {[%emt 0:01:32]} ({White should play} 27. Bc3 $15 Bf8 28. Rhh1) 27... Bf8 $19 {[%emt 0:00:49]} 28. Rhh1 {[%emt 0:00:32]} g4 {[%emt 0:00:59]} 29. Rd5 {[%emt 0:00:01]} (29. fxg4 $142 Be4+ 30. Kh3) 29... gxf3+ {[%emt 0:01:43]} ({Not} 29... Nxf3 30. Rxa5 Rb8 31. Bc7 $17) 30. Kf2 {[%emt 0:00:02]} Re8 {[%emt 0:01:27] [#] White must now prevent ...Nd3+.} 31. Rhd1 {[%emt 0:00:11] Against Nd3+. This move loses the game for White.} (31. Rh4 $17 {nothing else works.}) 31... Be4 {[%emt 0:02:05]} 32. Rd8 {[%emt 0:00:15]} Ng4+ {[%emt 0:00:21]} 33. Kf1 {[%emt 0:00:37]} Re5 {[%emt 0:02:44]} 34. Re1 {[%emt 0:01:30]} Kg7 {[%emt 0:01:48] [#] Hoping for ...Bb4.} 35. Bd4 {[%emt 0:00:31]} Bd3+ {[%emt 0:00:05] Black mates.} 36. Kg1 {[%emt 0:00:03]} Bc5 {[%emt 0:00:08]} 37. Rxe5 {[%emt 0:01:20]} Bxd4+ {[%emt 0:00:06]} 38. Kh1 {[%emt 0:00:04]} f2 {[%emt 0:00:27] Weighted Error Value: White=0.67/Black=0.08 (flawless)} 0-1

[Event "Croatian 1B League 2022"]
[Site "Porec"]
[Date "2022.09.27"]
[Round "4.9"]
[White "Cabarkapa, Novak"]
[Black "Rezan, Sasa"]
[Result "1/2-1/2"]
[ECO "A13"]
[WhiteElo "2433"]
[BlackElo "2388"]
[Annotator "TA"]
[PlyCount "40"]
[EventDate "2022.09.24"]
[EventType "team-tourn"]
[EventCountry "CRO"]
[SourceTitle "playchess.com"]
[Source "ChessBase"]
[SourceQuality "1"]
[TimeControl "40/5400+30:1800+30"]

{[%evp 9,40,20,48,16,20,6,6,-10,-18,-25,0,-20,-12,-26,-27,-33,-8,-14,-22,-41,-47,-42,-35,-96,-92,-100,-58,-64,-72,-55,-35,-34,0]} 1. c4 {[%emt 0:00:04]} e6 {[%emt 0:00:38]} 2. g3 {[%emt 0:00:09]} d5 {[%emt 0:00:07]} 3. Bg2 {[%emt 0:00:08]} dxc4 {[%emt 0:00:38]} 4. Qa4+ {[%emt 0:00:14]} Nd7 {[%emt 0:01:18]} 5. Qxc4 {[%emt 0:00:15]} a6 {[%emt 0:00:41]} 6. Qb3 {[%emt 0:01:37] A13: English Opening: 1...e6.} Ngf6 {[%emt 0:04:19]} 7. Nc3 {[%emt 0:01:10]} Rb8 {[%emt 0:03:11]} 8. d4 {[%emt 0:07:56] The position is equal.} b5 {[%emt 0:06:31] [#]} 9. Bf4 $146 {[%emt 0:06:29]} ({Predecessor:} 9. Nf3 Bb7 10. O-O c5 11. Bg5 Be7 12. Rad1 c4 13. Qc2 O-O 14. Ne5 Bxg2 15. Kxg2 {0-1 (49) Maklakova,N (1833)-Zhang,A (2077) Chess.com INT 2020}) 9... Bd6 {[%emt 0:07:52]} 10. Bxd6 {[%emt 0:17:59]} cxd6 {[%emt 0:00:16]} 11. a3 {[%emt 0:00:45]} O-O {[%emt 0:05:38]} 12. e4 {[%emt 0:05:21]} Bb7 {[%emt 0:12:56]} 13. Nge2 {[%emt 0:00:28]} a5 {[%emt 0:01:22][%cal Ob5b4,Ba6a5,Ba5b4][%mdl 32]} 14. Qc2 {[%emt 0:06:59]} b4 {[%emt 0:04:13]} 15. axb4 {[%emt 0:00:26]} axb4 {[%emt 0:00:02]} 16. Na4 {[%emt 0:08:40]} (16. Nd1 $15) 16... Qc8 $17 {[%emt 0:09:11]} 17. Qb1 {[%emt 0:09:27]} Qc4 {[%emt 0:03:46]} 18. b3 {[%emt 0:00:30]} Qb5 {[%emt 0:00:29]} 19. Ra2 {[%emt 0:00:34]} Rfc8 {[%emt 0:05:34]} 20. O-O {[%emt 0:00:32]} Rc7 {[%emt 0:03:21] Weighted Error Value: White=0.12 (very precise) /Black=0.10 (very precise)} 1/2-1/2

[Event "Croatian 1B League 2022"]
[Site "Porec"]
[Date "2022.09.27"]
[Round "4.10"]
[White "Plenkovic, Zdenko"]
[Black "Vojak, Daniel"]
[Result "0-1"]
[ECO "B90"]
[WhiteElo "2367"]
[BlackElo "2300"]
[Annotator "TA"]
[PlyCount "134"]
[EventDate "2022.09.24"]
[EventType "team-tourn"]
[EventCountry "CRO"]
[SourceTitle "playchess.com"]
[Source "ChessBase"]
[SourceQuality "1"]
[TimeControl "40/5400+30:1800+30"]

{[%evp 21,134,0,18,16,0,0,0,-25,-15,-15,0,-10,0,-13,0,10,11,0,-6,-140,-138,-142,-158,-154,-77,-82,-93,-90,-45,-42,-35,-47,-30,-81,-64,-81,-69,-106,-112,-100,-87,-89,-65,-81,-56,-58,-50,-75,-47,-72,-37,-48,-44,-41,-15,-20,-20,-38,-47,-43,0,-81,-73,-77,-72,-58,-40,-72,0,-69,0,-88,-88,-88,-88,-93,-82,-90,-76,-75,-70,-102,-102,-208,-204,-217,-137,-137,-137,-137,-137,-131,-150,-142,-147,-186,-156,-426,-395,-402,-422,-435,-407,-420,-405,-554,-536,-1663,-1704,-1622,-1622,-1866,-1369,-1587,-1244]} 1. e4 {[%emt 0:00:45]} c5 {[%emt 0:00:07]} 2. Nf3 {[%emt 0:00:04]} d6 {[%emt 0:00:06]} 3. d4 {[%emt 0:00:05]} cxd4 {[%emt 0:00:04]} 4. Nxd4 {[%emt 0:00:07]} Nf6 {[%emt 0:00:05]} 5. Nc3 {[%emt 0:00:06]} a6 {[%emt 0:00:05]} 6. Be3 {[%emt 0:01:43]} e5 {[%emt 0:00:25]} 7. Nb3 {[%emt 0:00:11]} Be6 {[%emt 0:00:04]} 8. f3 {[%emt 0:00:19]} h5 {[%emt 0:00:08]} 9. Qd2 {[%emt 0:00:14]} Nbd7 {[%emt 0:00:26]} 10. O-O-O {[%emt 0:02:15]} Rc8 {[%emt 0:07:35]} 11. Kb1 {[%emt 0:02:39]} Be7 {[%emt 0:03:28]} 12. Nd5 {[%emt 0:03:40] B90: Sicilian Najdorf: Unusual White 6th moves, 6 Be3 Ng4 and 6 Be3 e5.} Bxd5 {[%emt 0:11:39]} 13. exd5 {[%emt 0:02:07]} Nb6 $1 {[%emt 0:01:27] [#] Inhibits c4.} 14. Bf2 $146 {[%emt 0:16:20] The position is equal.} ({Predecessor:} 14. Bxb6 Qxb6 15. Bd3 Rc7 16. c4 O-O 17. Rhe1 Bd8 18. g3 Re8 19. h3 Kf8 20. g4 hxg4 21. hxg4 {1-0 (32) Yu,Y (2749)-Zhou,J (2595) Beijing 2017}) 14... Nbxd5 {[%emt 0:07:50]} 15. g3 {[%emt 0:02:59]} O-O {[%emt 0:16:22]} 16. Bh3 {[%emt 0:07:11] Inhibits Qd7.} Rb8 {[%emt 0:01:33]} 17. Rhe1 {[%emt 0:04:53]} Nb6 {[%emt 0:12:09]} 18. f4 {[%emt 0:07:01]} Nc4 {[%emt 0:05:42]} 19. Qe2 {[%emt 0:04:24][%mdl 1024] White has compensation.} Qc7 {[%emt 0:01:10]} 20. Nd4 {[%emt 0:02:03]} Rfe8 $17 {[%emt 0:07:45]} 21. Nf5 {[%emt 0:05:57]} Bf8 {[%emt 0:00:58]} 22. Ne3 {[%emt 0:04:04] [#]} Nxe3 {[%emt 0:02:45]} (22... b5 $142 $1 {Hoping for ...exf4.} 23. Qf1 e4) 23. Bxe3 {[%emt 0:00:09]} exf4 {[%emt 0:04:50]} 24. gxf4 {[%emt 0:00:22]} d5 {[%emt 0:00:23]} 25. Qg2 {[%emt 0:02:39]} Qc4 {[%emt 0:01:28]} 26. Qg1 {[%emt 0:02:26]} Re7 {[%emt 0:04:03]} 27. Bf1 {[%emt 0:05:01]} (27. Rd3 $11) 27... Qc7 {[%emt 0:00:22]} 28. Bd3 {[%emt 0:00:29]} Rbe8 {[%emt 0:00:17]} 29. Bd2 {[%emt 0:07:10]} Rxe1 {[%emt 0:00:23]} (29... Ne4 {is interesting.} 30. Bc1 Re6 31. f5 Bc5) 30. Rxe1 {[%emt 0:00:11]} Rxe1+ {[%emt 0:00:02]} 31. Qxe1 {[%emt 0:00:08]} Bd6 {[%emt 0:00:14]} 32. Qe3 {[%emt 0:06:16]} Bc5 {[%emt 0:03:38]} 33. Qf3 {[%emt 0:00:35]} Qb6 {[%emt 0:00:21]} 34. Bc1 {[%emt 0:01:39]} Bd6 {[%emt 0:00:30]} 35. h3 {[%emt 0:01:05]} Qb4 {[%emt 0:01:06]} (35... a5 {keeps more tension.} 36. Be2 Qg1 37. c4 d4) 36. c3 {[%emt 0:00:28]} Qb6 {[%emt 0:00:40]} 37. c4 {[%emt 0:01:44]} d4 {[%emt 0:02:05]} 38. Bc2 {[%emt 0:00:28]} Qc6 {[%emt 0:01:04]} 39. Qd3 {[%emt 0:00:18]} Bc5 {[%emt 0:00:21]} 40. a3 {[%emt 0:00:00]} Qh1 {[%emt 0:00:00]} 41. Qf5 {[%emt 0:13:05]} (41. b4 $1 $11 Be7 42. c5) 41... Bf8 {[%emt 0:05:03]} 42. Bd3 {[%emt 0:02:53]} Qf3 $36 {[%emt 0:02:36][%cal Og7g6][%mdl 2048] Black has strong initiative.} 43. Kc2 {[%emt 0:00:46]} Qc6 {[%emt 0:01:33]} 44. Kb1 {[%emt 0:01:43]} Qf3 {[%emt 0:01:16][%cal Og7g6] Threatens to win with ...g6!} 45. Kc2 $1 {[%emt 0:02:34]} Qc6 {[%emt 0:00:13]} ({Black should try} 45... Qf2+ $15 46. Kb1 Qf3) 46. Qe5 {[%emt 0:03:33]} (46. Kb1 $11 {keeps the balance.}) 46... Qg2+ {[%emt 0:03:28]} 47. Bd2 {[%emt 0:01:07]} Qxh3 {[%emt 0:00:42]} 48. Qxd4 {[%emt 0:03:00]} h4 {[%emt 0:03:06]} 49. Qf2 {[%emt 0:06:01] Prevents Qg2.} Qh1 {[%emt 0:05:19]} 50. Qf1 {[%emt 0:01:27]} Qh2 {[%emt 0:01:34]} 51. Bf5 {[%emt 0:01:47]} g6 {[%emt 0:01:56]} 52. Qh3 {[%emt 0:00:09] [#]} (52. Bh3 $17) 52... Qf2 $1 $19 {[%emt 0:02:57]} 53. Bd3 {[%emt 0:02:36]} Bd6 {[%emt 0:01:20]} 54. Qe3 {[%emt 0:02:33]} Qxe3 {[%emt 0:05:10] Black is more active.} 55. Bxe3 $17 {[%emt 0:00:04][%mdl 4096] Endgame KBB-KBN} h3 {[%emt 0:00:24][%cal Bh4h3,Bh3h2][%mdl 32]} 56. Bf1 {[%emt 0:00:48]} h2 {[%emt 0:00:11]} 57. Bg2 {[%emt 0:00:08]} b5 {[%emt 0:00:21]} 58. c5 {[%emt 0:00:33]} Ng4 {[%emt 0:01:56]} 59. Bd4 {[%emt 0:00:31] This move loses the game for White.} (59. Kd3 $17 {keeps fighting.} Nxe3 60. Kxe3 Bxc5+ 61. Kf3) 59... Bxf4 $19 {[%emt 0:00:12]} 60. c6 {[%emt 0:00:40]} Kf8 {[%emt 0:00:52]} 61. Kd3 {[%emt 0:02:58]} Ke7 {[%emt 0:01:25]} 62. Ke4 {[%emt 0:00:14]} Bc7 {[%emt 0:00:26]} 63. Bc5+ {[%emt 0:00:39]} Ke6 {[%emt 0:00:14] aiming for ...f5+. Black is clearly winning.} 64. b4 {[%emt 0:01:41]} f5+ {[%emt 0:00:14]} 65. Kd3 {[%emt 0:00:18]} Nf6 {[%emt 0:01:48][%cal Of6e4]} 66. Ke3 {[%emt 0:00:46]} Ne4 {[%emt 0:00:39]} 67. Bd4 {[%emt 0:00:39]} Ng3 {[%emt 0:00:12] Weighted Error Value: White=0.26 (precise) /Black=0.14 (very precise)} 0-1